[Event "ROU-ch Women 2021"]
[Site "Iasi"]
[Date "2021.04.19"]
[Round "1.1"]
[White "Anghel, Maria"]
[Black "Peptan, Corina-Isabela"]
[Result "0-1"]
[ECO "E11"]
[WhiteElo "1918"]
[BlackElo "2392"]
[Annotator "ChessBase"]
[PlyCount "92"]
[EventDate "2021.04.19"]
[EventType "swiss"]
[EventCountry "ROU"]
[SourceTitle "playchess.com"]
[Source "ChessBase"]
[SourceQuality "1"]
[TimeControl "5400+30"]

1. d4 {[%emt 0:00:00]} Nf6 {[%emt 0:00:00]} 2. Nf3 {[%emt 0:00:00]} e6 {[%emt 0:00:53]} 3. c4 {[%emt 0:00:00]} Bb4+ {[%emt 0:00:33]} 4. Bd2 {[%emt 0:00:07]} Qe7 {[%emt 0:00:28]} 5. g3 {[%emt 0:00:54]} O-O {[%emt 0:03:44]} 6. Bg2 {[%emt 0:00:20]} d5 {[%emt 0:00:08]} 7. cxd5 {[%emt 0:07:41]} exd5 {[%emt 0:00:10]} 8. O-O {[%emt 0:01:23]} Bd6 {[%emt 0:06:19]} 9. Nc3 {[%emt 0:02:21]} c6 {[%emt 0:00:30]} 10. Rc1 {[%emt 0:10:33]} Nbd7 {[%emt 0:07:23]} 11. Ne1 {[%emt 0:08:07]} Nb6 {[%emt 0:05:46]} 12. Nd3 {[%emt 0:05:41]} Nc4 {[%emt 0:02:00]} 13. Re1 {[%emt 0:10:56]} Nxd2 {[%emt 0:05:30]} 14. Qxd2 {[%emt 0:01:15]} Ne4 {[%emt 0:03:06]} 15. Nxe4 {[%emt 0:13:57]} dxe4 {[%emt 0:00:06]} 16. Nc5 {[%emt 0:01:13]} Bf5 {[%emt 0:03:41]} 17. a3 {[%emt 0:02:47]} Rfe8 {[%emt 0:03:13]} 18. e3 {[%emt 0:01:42]} h5 {[%emt 0:02:36]} 19. f4 {[%emt 0:10:30]} exf3 {[%emt 0:05:31]} 20. Bxf3 {[%emt 0:00:11]} h4 {[%emt 0:00:06]} 21. e4 {[%emt 0:02:23]} Bg6 {[%emt 0:00:28]} 22. e5 {[%emt 0:03:49]} Bxc5 {[%emt 0:00:07]} 23. Rxc5 {[%emt 0:00:42]} Rad8 {[%emt 0:00:05]} 24. Qf4 {[%emt 0:02:36]} hxg3 {[%emt 0:05:45]} 25. hxg3 {[%emt 0:00:06]} Qe6 {[%emt 0:00:28]} 26. Bg4 {[%emt 0:04:16]} Qb3 {[%emt 0:00:33]} 27. Qf2 {[%emt 0:01:52]} Qa4 {[%emt 0:06:52]} 28. Rd1 {[%emt 0:04:04]} b6 {[%emt 0:00:11]} 29. Rcc1 {[%emt 0:00:28]} c5 {[%emt 0:00:09]} 30. Bf3 {[%emt 0:01:32]} Rxd4 {[%emt 0:00:39]} 31. Re1 {[%emt 0:01:57]} Qb3 {[%emt 0:01:48]} 32. Rc3 {[%emt 0:01:08]} Qe6 {[%emt 0:00:07]} 33. b4 {[%emt 0:00:30]} Rc4 {[%emt 0:01:03]} 34. Rxc4 {[%emt 0:00:15]} Qxc4 {[%emt 0:00:06]} 35. Bc6 {[%emt 0:01:19]} Rd8 {[%emt 0:00:39]} 36. bxc5 {[%emt 0:00:50]} bxc5 {[%emt 0:00:32]} 37. Rf1 {[%emt 0:00:31]} Qe6 {[%emt 0:03:28]} 38. Bg2 {[%emt 0:00:32]} Qxe5 {[%emt 0:00:06]} 39. Re1 {[%emt 0:00:27]} Qd4 {[%emt 0:00:17]} 40. Qxd4 {[%emt 0:00:33]} cxd4 {[%emt 0:00:11]} 41. Kf2 {[%emt 0:00:29]} d3 {[%emt 0:00:06]} 42. Rd1 {[%emt 0:00:31]} d2 {[%emt 0:01:00]} 43. Ke2 {[%emt 0:00:25]} Bh5+ {[%emt 0:00:41]} 44. Bf3 {[%emt 0:00:24]} Bxf3+ {[%emt 0:00:04]} 45. Kxf3 {[%emt 0:00:08]} Rd3+ {[%emt 0:00:05]} 46. Kf2 {[%emt 0:01:01]} f5 {[%emt 0:00:04]} 0-1

[Event "ROU-ch Women 2021"]
[Site "Iasi"]
[Date "2021.04.19"]
[Round "1.2"]
[White "Sandu, Mihaela"]
[Black "Pancu, Aureliana-Eugenia"]
[Result "1-0"]
[ECO "C14"]
[WhiteElo "2268"]
[BlackElo "1878"]
[Annotator "ChessBase"]
[PlyCount "61"]
[EventDate "2021.04.19"]
[EventType "swiss"]
[EventCountry "ROU"]
[SourceTitle "playchess.com"]
[Source "ChessBase"]
[SourceQuality "1"]
[TimeControl "5400+30"]

1. e4 {[%emt 0:00:00]} e6 {[%emt 0:00:00]} 2. d4 {[%emt 0:00:00]} d5 {[%emt 0:00:00]} 3. Nc3 {[%emt 0:00:00]} Nf6 {[%emt 0:00:00]} 4. Bg5 {[%emt 0:01:03]} Be7 {[%emt 0:01:54]} 5. e5 {[%emt 0:00:08]} Nfd7 {[%emt 0:00:11]} 6. h4 {[%emt 0:00:13]} h6 {[%emt 0:01:52]} 7. Bxe7 {[%emt 0:00:10]} Qxe7 {[%emt 0:00:23]} 8. Qg4 {[%emt 0:00:41]} f5 {[%emt 0:01:55]} 9. Qh5+ {[%emt 0:00:57]} Qf7 {[%emt 0:00:17]} 10. Qxf7+ {[%emt 0:00:44]} Kxf7 {[%emt 0:00:09]} 11. Nge2 {[%emt 0:05:16]} g6 {[%emt 0:03:51]} 12. Nf4 {[%emt 0:00:28]} a6 {[%emt 0:00:30]} 13. Ncxd5 {[%emt 0:00:30]} exd5 {[%emt 0:00:30]} 14. e6+ {[%emt 0:00:30]} Kg7 {[%emt 0:00:30]} 15. exd7 {[%emt 0:00:30]} Bxd7 {[%emt 0:00:30]} 16. Nxd5 {[%emt 0:00:30]} Re8+ {[%emt 0:02:35]} 17. Kd2 {[%emt 0:06:05]} Re4 {[%emt 0:06:11]} 18. c3 {[%emt 0:04:52]} b5 {[%emt 0:00:30]} 19. f3 {[%emt 0:00:30]} Re8 {[%emt 0:10:02]} 20. Nxc7 {[%emt 0:00:46]} Nc6 {[%emt 0:00:18]} 21. Nxa8 {[%emt 0:00:33]} Rxa8 {[%emt 0:00:01]} 22. a4 {[%emt 0:02:02]} b4 {[%emt 0:00:19]} 23. Re1 {[%emt 0:02:08]} Kf6 {[%emt 0:00:25]} 24. Bc4 {[%emt 0:02:09]} bxc3+ {[%emt 0:01:24]} 25. bxc3 {[%emt 0:00:00]} Na5 {[%emt 0:00:16]} 26. Bd5 {[%emt 0:00:59]} Rd8 {[%emt 0:02:53]} 27. Re5 {[%emt 0:00:00]} Rb8 {[%emt 0:04:14]} 28. Re2 {[%emt 0:06:28]} Rb2+ {[%emt 0:01:46]} 29. Ke3 {[%emt 0:03:36]} Rxe2+ {[%emt 0:00:19]} 30. Kxe2 {[%emt 0:00:03]} Bxa4 {[%emt 0:00:05]} 31. Kd3 {[%emt 0:01:57]} 1-0

[Event "ROU-ch Women 2021"]
[Site "Iasi"]
[Date "2021.04.19"]
[Round "1.3"]
[White "Maria, Lia-Alexandra"]
[Black "Lehaci, Miruna-Daria"]
[Result "0-1"]
[ECO "B67"]
[WhiteElo "1713"]
[BlackElo "2188"]
[Annotator "NA"]
[PlyCount "76"]
[EventDate "2021.04.19"]
[EventType "swiss"]
[EventCountry "ROU"]
[SourceTitle "playchess.com"]
[Source "ChessBase"]
[SourceQuality "1"]
[TimeControl "5400+30"]

1. e4 {[%emt 0:00:00]} c5 {[%emt 0:00:00]} 2. Nf3 {[%emt 0:00:00]} d6 {[%emt 0:00:00]} 3. d4 {[%emt 0:00:00]} cxd4 {[%emt 0:00:00]} 4. Nxd4 {[%emt 0:00:06]} Nf6 {[%emt 0:00:00]} 5. Nc3 {[%emt 0:00:12]} Nc6 {[%emt 0:00:00]} 6. Bg5 {[%emt 0:00:14]} e6 {[%emt 0:00:16]} 7. Qd2 {[%emt 0:00:10]} a6 {[%emt 0:00:07]} 8. O-O-O {[%emt 0:00:44]} Bd7 {[%emt 0:00:05]} 9. f3 {[%emt 0:02:20]} Be7 {[%emt 0:00:17]} 10. g4 {[%emt 0:02:26]} h5 {[%emt 0:00:51]} 11. Be2 {[%emt 0:01:57]} Rc8 {[%emt 0:05:56]} 12. h4 {[%emt 0:03:31]} hxg4 {[%emt 0:06:49]} 13. fxg4 {[%emt 0:00:41]} b5 {[%emt 0:00:36]} 14. a3 {[%emt 0:05:07]} Ne5 {[%emt 0:05:27]} 15. Bxf6 {[%emt 0:05:39]} Bxf6 {[%emt 0:00:24]} 16. g5 {[%emt 0:00:09]} Be7 {[%emt 0:00:08]} 17. Rdf1 {[%emt 0:01:54]} Qb6 {[%emt 0:22:29]} 18. h5 {[%emt 0:05:29]} Nc4 {[%emt 0:08:48]} 19. Bxc4 {[%emt 0:00:51]} Rxc4 {[%emt 0:00:04]} 20. Nb3 {[%emt 0:00:18]} Qd8 {[%emt 0:10:01]} 21. Rfg1 {[%emt 0:01:13]} Bc8 {[%emt 0:05:26]} 22. g6 {[%emt 0:02:42]} fxg6 {[%emt 0:04:11]} 23. Rxg6 {[%emt 0:07:28]} Bf6 {[%emt 0:00:38]} 24. h6 {[%emt 0:01:24]} Kd7 {[%emt 0:04:59]} 25. Rhg1 {[%emt 0:02:05]} gxh6 {[%emt 0:01:02]} 26. Rxh6 {[%emt 0:00:48]} Rxh6 {[%emt 0:02:05]} 27. Qxh6 {[%emt 0:00:08]} Kc7 {[%emt 0:01:42]} 28. Na5 {[%emt 0:03:01]} Rc5 {[%emt 0:00:20]} 29. Qh7+ {[%emt 0:01:27]} Kb8 {[%emt 0:00:41]} 30. Nb7 {[%emt 0:01:54]} Bg5+ {[%emt 0:00:20]} 31. Kb1 {[%emt 0:00:27]} Bxb7 {[%emt 0:00:16]} 32. Ne2 {[%emt 0:02:38]} Re5 {[%emt 0:03:00]} 33. Rg4 {[%emt 0:01:48]} Qf6 {[%emt 0:00:51]} 34. Nd4 {[%emt 0:02:16]} Rc5 {[%emt 0:05:53]} 35. Qg8+ {[%emt 0:01:38]} Rc8 {[%emt 0:00:17]} 36. Qxg5 {[%emt 0:00:36]} Qxd4 {[%emt 0:00:05]} 37. Rg2 {[%emt 0:01:39]} Bxe4 {[%emt 0:01:01]} 38. Rd2 {[%emt 0:00:27]} Qc5 {[%emt 0:00:38]} 0-1

[Event "ROU-ch Women 2021"]
[Site "Iasi"]
[Date "2021.04.19"]
[Round "1.4"]
[White "Cosman, Andreea-Marioara"]
[Black "Andries, Alexia"]
[Result "1-0"]
[ECO "D35"]
[WhiteElo "2164"]
[BlackElo "1553"]
[Annotator "NA"]
[PlyCount "67"]
[EventDate "2021.04.19"]
[EventType "swiss"]
[EventCountry "ROU"]
[SourceTitle "playchess.com"]
[Source "ChessBase"]
[SourceQuality "1"]
[TimeControl "5400+30"]

1. d4 {[%emt 0:00:00]} d5 {[%emt 0:00:28]} 2. c4 {[%emt 0:00:00]} e6 {[%emt 0:00:05]} 3. Nc3 {[%emt 0:00:00]} Nf6 {[%emt 0:00:15]} 4. cxd5 {[%emt 0:00:00]} exd5 {[%emt 0:00:08]} 5. Bg5 {[%emt 0:00:00]} Be7 {[%emt 0:01:42]} 6. Qc2 {[%emt 0:00:03]} O-O {[%emt 0:01:53]} 7. e3 {[%emt 0:00:06]} b6 {[%emt 0:02:24]} 8. Bd3 {[%emt 0:02:58]} h6 {[%emt 0:00:09]} 9. Bf4 {[%emt 0:02:17]} c6 {[%emt 0:01:58]} 10. Nf3 {[%emt 0:00:55]} Nbd7 {[%emt 0:01:12]} 11. O-O {[%emt 0:03:01]} Bb7 {[%emt 0:02:16]} 12. Rac1 {[%emt 0:03:40]} c5 {[%emt 0:01:44]} 13. dxc5 {[%emt 0:01:59]} bxc5 {[%emt 0:00:18]} 14. Rfd1 {[%emt 0:03:12]} Rc8 {[%emt 0:08:44]} 15. Bf5 {[%emt 0:03:27]} a6 {[%emt 0:09:57]} 16. Ne5 {[%emt 0:03:01]} Nxe5 {[%emt 0:03:47]} 17. Bxc8 {[%emt 0:00:53]} Nf3+ {[%emt 0:00:19]} 18. gxf3 {[%emt 0:00:07]} Qxc8 {[%emt 0:00:19]} 19. Ne2 {[%emt 0:03:10]} d4 {[%emt 0:08:09]} 20. e4 {[%emt 0:04:56]} g5 {[%emt 0:06:54]} 21. Be5 {[%emt 0:14:26]} Nh5 {[%emt 0:04:32]} 22. Ng3 {[%emt 0:04:10]} Qh3 {[%emt 0:00:41]} 23. Qd3 {[%emt 0:04:50]} Nf4 {[%emt 0:00:22]} 24. Bxf4 {[%emt 0:02:38]} gxf4 {[%emt 0:00:06]} 25. Nf5 {[%emt 0:03:53]} Bf6 {[%emt 0:00:39]} 26. Rxc5 {[%emt 0:05:38]} Kh8 {[%emt 0:00:55]} 27. Kh1 {[%emt 0:00:33]} Re8 {[%emt 0:02:44]} 28. Nd6 {[%emt 0:01:03]} Rb8 {[%emt 0:02:34]} 29. Nxf7+ {[%emt 0:02:31]} Kg7 {[%emt 0:00:10]} 30. Rc7 {[%emt 0:00:58]} Kf8 {[%emt 0:00:16]} 31. Qa3+ {[%emt 0:00:39]} Ke8 {[%emt 0:01:40]} 32. Rg1 {[%emt 0:00:14]} Bg5 {[%emt 0:01:26]} 33. Nxg5 {[%emt 0:00:14]} hxg5 {[%emt 0:00:06]} 34. Qe7# {[%emt 0:00:05]} 1-0

[Event "ROU-ch Women 2021"]
[Site "Iasi"]
[Date "2021.04.19"]
[Round "1.5"]
[White "Marcu, Daria-Ana"]
[Black "Ciolacu, Alessia-Mihaela"]
[Result "0-1"]
[ECO "B94"]
[WhiteElo "1533"]
[BlackElo "2052"]
[Annotator "NA"]
[PlyCount "96"]
[EventDate "2021.04.19"]
[EventType "swiss"]
[EventCountry "ROU"]
[SourceTitle "playchess.com"]
[Source "ChessBase"]
[SourceQuality "1"]
[TimeControl "5400+30"]

1. e4 {[%emt 0:00:00]} c5 {[%emt 0:00:00]} 2. Nf3 {[%emt 0:00:00]} d6 {[%emt 0:00:00]} 3. d4 {[%emt 0:00:00]} cxd4 {[%emt 0:00:00]} 4. Nxd4 {[%emt 0:00:00]} Nf6 {[%emt 0:00:00]} 5. Nc3 {[%emt 0:00:08]} a6 {[%emt 0:00:04]} 6. Bg5 {[%emt 0:00:24]} Nbd7 {[%emt 0:00:23]} 7. Qd2 {[%emt 0:00:48]} h6 {[%emt 0:02:14]} 8. Be3 {[%emt 0:04:20]} Qc7 9. Nb3 {[%emt 0:10:00]} e6 {[%emt 0:00:36]} 10. Be2 {[%emt 0:00:23]} b5 {[%emt 0:00:51]} 11. a3 {[%emt 0:00:00]} Bb7 {[%emt 0:17:10]} 12. f3 {[%emt 0:00:00]} Be7 {[%emt 0:03:24]} 13. O-O-O {[%emt 0:00:00]} Ne5 {[%emt 0:06:07]} 14. Qd4 {[%emt 0:00:00]} Rc8 {[%emt 0:03:35]} 15. h3 {[%emt 0:00:38]} d5 {[%emt 0:08:18]} 16. Qb6 {[%emt 0:02:06]} Qxb6 {[%emt 0:04:20]} 17. Bxb6 {[%emt 0:00:07]} dxe4 {[%emt 0:00:17]} 18. f4 {[%emt 0:10:59]} Ned7 {[%emt 0:07:17]} 19. Bd4 {[%emt 0:03:00]} O-O {[%emt 0:02:08]} 20. Rhg1 {[%emt 0:01:48]} Nd5 {[%emt 0:03:09]} 21. g3 {[%emt 0:04:09]} Nxc3 {[%emt 0:01:05]} 22. Bxc3 {[%emt 0:00:15]} Bd5 {[%emt 0:00:36]} 23. Nd2 {[%emt 0:08:58]} Bxa3 {[%emt 0:03:21]} 24. Kb1 {[%emt 0:02:26]} Bc5 {[%emt 0:01:36]} 25. Rgf1 {[%emt 0:00:13]} b4 {[%emt 0:01:49]} 26. Be5 {[%emt 0:01:18]} f6 {[%emt 0:04:31]} 27. Bxa6 {[%emt 0:02:21]} Ra8 {[%emt 0:02:03]} 28. Bb5 {[%emt 0:00:55]} fxe5 {[%emt 0:03:14]} 29. Bxd7 {[%emt 0:00:23]} Ra7 {[%emt 0:00:19]} 30. Bb5 {[%emt 0:00:23]} exf4 {[%emt 0:01:23]} 31. gxf4 {[%emt 0:01:04]} Be3 {[%emt 0:05:47]} 32. Nb3 {[%emt 0:10:20]} Bxf4 {[%emt 0:03:04]} 33. Rd4 {[%emt 0:01:47]} Bd6 {[%emt 0:02:21]} 34. Rxf8+ {[%emt 0:00:26]} Kxf8 {[%emt 0:00:17]} 35. Rd1 {[%emt 0:01:50]} g5 {[%emt 0:02:36]} 36. Nd4 {[%emt 0:01:27]} Ba2+ {[%emt 0:02:49]} 37. Ka1 {[%emt 0:00:45]} Bb3+ {[%emt 0:00:18]} 38. Kb1 {[%emt 0:00:09]} Ba2+ {[%emt 0:00:05]} 39. Ka1 {[%emt 0:00:05]} Bd5+ {[%emt 0:00:05]} 40. Kb1 {[%emt 0:00:06]} Ra5 {[%emt 0:01:38]} 41. Bd7 {[%emt 0:04:13]} e5 {[%emt 0:05:59]} 42. Bc6 {[%emt 0:02:20]} Ba2+ {[%emt 0:00:11]} 43. Ka1 {[%emt 0:00:40]} exd4 {[%emt 0:00:05]} 44. Rxd4 {[%emt 0:01:08]} Bd5+ {[%emt 0:00:19]} 45. Kb1 {[%emt 0:01:10]} Bxc6 {[%emt 0:00:05]} 46. Rxd6 {[%emt 0:00:08]} Bd5 {[%emt 0:01:16]} 47. Rb6 {[%emt 0:00:42]} e3 {[%emt 0:00:10]} 48. Rf6+ {[%emt 0:01:16]} Kg7 {[%emt 0:00:30]} 0-1

[Event "ROU-ch Women 2021"]
[Site "Iasi"]
[Date "2021.04.19"]
[Round "1.6"]
[White "Obada, Ema"]
[Black "Pirvan, Maria"]
[Result "1-0"]
[ECO "B31"]
[WhiteElo "1940"]
[BlackElo "1529"]
[Annotator "ChessBase"]
[PlyCount "93"]
[EventDate "2021.04.19"]
[EventType "swiss"]
[EventCountry "ROU"]
[SourceTitle "playchess.com"]
[Source "ChessBase"]
[SourceQuality "1"]
[TimeControl "5400+30"]

1. e4 {[%emt 0:00:00]} c5 {[%emt 0:00:00]} 2. Nf3 {[%emt 0:00:00]} Nc6 {[%emt 0:00:00]} 3. Bb5 {[%emt 0:00:00]} g6 {[%emt 0:01:28]} 4. Bxc6 {[%emt 0:00:00]} dxc6 {[%emt 0:03:17]} 5. O-O {[%emt 0:00:14]} Nf6 {[%emt 0:00:32]} 6. d3 {[%emt 0:01:06]} Bg7 {[%emt 0:00:30]} 7. Nc3 {[%emt 0:01:27]} O-O {[%emt 0:01:55]} 8. Be3 {[%emt 0:00:37]} b6 {[%emt 0:01:07]} 9. h3 {[%emt 0:01:37]} Ba6 {[%emt 0:11:34]} 10. Qc1 {[%emt 0:09:03]} Qc7 {[%emt 0:11:11]} 11. Bf4 {[%emt 0:01:54]} Qb7 {[%emt 0:00:22]} 12. Bh6 {[%emt 0:01:15]} c4 {[%emt 0:09:24]} 13. Bxg7 {[%emt 0:05:11]} Kxg7 {[%emt 0:00:12]} 14. d4 {[%emt 0:00:30]} c5 {[%emt 0:06:53]} 15. d5 {[%emt 0:06:37]} b5 {[%emt 0:07:18]} 16. Qe3 {[%emt 0:06:02]} Rac8 {[%emt 0:01:01]} 17. Rad1 {[%emt 0:09:44]} Rfd8 {[%emt 0:02:25]} 18. Ne2 {[%emt 0:06:54]} e6 {[%emt 0:24:25]} 19. dxe6 {[%emt 0:17:55]} Qxe4 {[%emt 0:03:07]} 20. Qxe4 {[%emt 0:05:13]} Nxe4 {[%emt 0:00:19]} 21. e7 {[%emt 0:00:36]} Rxd1 {[%emt 0:04:30]} 22. Rxd1 {[%emt 0:00:07]} Nf6 {[%emt 0:03:01]} 23. Rd8 {[%emt 0:01:15]} Ne8 {[%emt 0:03:08]} 24. Nf4 {[%emt 0:02:26]} f6 {[%emt 0:02:22]} 25. Rd7 {[%emt 0:00:22]} Ra8 {[%emt 0:01:32]} 26. Ne6+ {[%emt 0:04:18]} Kf7 {[%emt 0:00:09]} 27. Nxc5 {[%emt 0:01:38]} Bc8 {[%emt 0:00:15]} 28. Rd1 {[%emt 0:01:42]} Kxe7 {[%emt 0:00:29]} 29. Nd4 {[%emt 0:00:18]} Nc7 {[%emt 0:01:17]} 30. Nc6+ {[%emt 0:01:18]} Kf7 {[%emt 0:00:39]} 31. Rd8 {[%emt 0:01:44]} Ne6 {[%emt 0:00:36]} 32. Nxe6 {[%emt 0:00:18]} Kxe6 {[%emt 0:00:05]} 33. Nd4+ {[%emt 0:00:15]} Ke7 {[%emt 0:00:38]} 34. Rh8 {[%emt 0:00:07]} a6 {[%emt 0:00:42]} 35. Rxh7+ {[%emt 0:00:30]} Kd6 {[%emt 0:00:31]} 36. c3 {[%emt 0:02:22]} Bf5 {[%emt 0:00:34]} 37. f4 {[%emt 0:02:58]} Bd3 {[%emt 0:00:26]} 38. Rf7 {[%emt 0:00:21]} f5 {[%emt 0:00:33]} 39. Rf6+ {[%emt 0:00:17]} Kc7 {[%emt 0:00:11]} 40. Rxg6 {[%emt 0:00:10]} Re8 {[%emt 0:00:47]} 41. Re6 {[%emt 0:00:21]} Rxe6 {[%emt 0:00:29]} 42. Nxe6+ {[%emt 0:00:04]} Kd6 {[%emt 0:00:10]} 43. Nd4 {[%emt 0:00:05]} Kc5 {[%emt 0:00:16]} 44. a3 {[%emt 0:00:33]} a5 {[%emt 0:00:10]} 45. Kf2 {[%emt 0:01:03]} b4 {[%emt 0:00:15]} 46. axb4+ {[%emt 0:00:04]} axb4 {[%emt 0:00:06]} 47. g4 {[%emt 0:01:59]} 1-0

[Event "ROU-ch Women 2021"]
[Site "Iasi"]
[Date "2021.04.20"]
[Round "2.5"]
[White "Pancu, Aureliana-Eugenia"]
[Black "Marcu, Daria-Ana"]
[Result "1-0"]
[ECO "A07"]
[WhiteElo "1878"]
[BlackElo "1533"]
[Annotator "NA RC"]
[PlyCount "91"]
[EventDate "2021.04.19"]
[EventType "swiss"]
[EventCountry "ROU"]
[SourceTitle "playchess.com"]
[Source "ChessBase"]
[SourceQuality "1"]
[TimeControl "5400+30"]

1. Nf3 {[%emt 0:00:00]} d5 {[%emt 0:00:00]} 2. g3 {[%emt 0:00:00]} Nf6 {[%emt 0:00:00]} 3. Bg2 {[%emt 0:00:00]} c6 {[%emt 0:00:05]} 4. O-O {[%emt 0:01:17]} Bf5 {[%emt 0:00:12]} 5. d3 {[%emt 0:00:39]} e6 {[%emt 0:00:12]} 6. Nbd2 {[%emt 0:02:39]} c5 {[%emt 0:00:29]} 7. Qe1 {[%emt 0:01:28]} Nc6 {[%emt 0:01:38]} 8. c3 {[%emt 0:01:57]} Be7 {[%emt 0:00:57]} 9. e4 {[%emt 0:02:45]} dxe4 {[%emt 0:01:10]} 10. dxe4 {[%emt 0:00:09]} Bg6 {[%emt 0:00:37]} 11. Qe2 {[%emt 0:04:24]} a6 $16 {[%emt 0:02:47]} (11... O-O $11) 12. h3 {[%emt 0:12:17]} h6 {[%emt 0:01:49]} 13. Re1 O-O {[%emt 0:00:30]} 14. Nh4 {[%emt 0:03:02]} Bh7 {[%emt 0:02:49]} 15. f4 {[%emt 0:04:03]} e5 {[%emt 0:02:43]} 16. f5 {[%emt 0:00:38]} b5 {[%emt 0:00:52]} 17. Nf1 {[%emt 0:04:04]} Qc7 18. Be3 {[%emt 0:00:38]} Nd7 {[%emt 0:08:12]} 19. Nf3 {[%emt 0:04:56]} c4 20. Red1 {[%emt 0:04:01]} Rad8 21. Qf2 {[%emt 0:06:55]} Qb7 {[%emt 0:10:04]} 22. Ne1 {[%emt 0:03:49]} Nf6 23. Qc2 {[%emt 0:09:07]} Nb8 {[%emt 0:11:07]} 24. g4 {[%emt 0:00:00]} Nbd7 {[%emt 0:01:03]} 25. Ng3 {[%emt 0:00:00]} Nc5 {[%emt 0:09:49]} 26. Kh1 {[%emt 0:00:00]} Nfd7 {[%emt 0:05:03]} 27. Rd5 {[%emt 0:00:00]} Bh4 {[%emt 0:04:02]} 28. Kh2 {[%emt 0:00:00]} Be7 {[%emt 0:04:34]} 29. Rad1 {[%emt 0:00:17]} Rc8 {[%emt 0:01:50]} 30. Qf2 {[%emt 0:00:33]} Rc7 {[%emt 0:08:57]} 31. Nh5 {[%emt 0:07:22]} Rfc8 {[%emt 0:06:46]} 32. Qc2 {[%emt 0:09:03]} Nb6 {[%emt 0:04:09]} 33. R5d2 {[%emt 0:01:46]} Rd7 {[%emt 0:02:17]} 34. Rxd7 {[%emt 0:00:38]} Nbxd7 {[%emt 0:00:07]} 35. Rd2 {[%emt 0:02:09]} Bh4 {[%emt 0:01:37]} 36. Nf3 {[%emt 0:00:54]} Be7 {[%emt 0:00:10]} 37. Ng1 {[%emt 0:03:01]} Nd3 {[%emt 0:00:50]} 38. b4 {[%emt 0:03:32]} Rd8 {[%emt 0:04:34]} 39. Qd1 {[%emt 0:00:08]} Bh4 {[%emt 0:03:57]} 40. Nf3 {[%emt 0:00:43]} Qxe4 {[%emt 0:02:21]} 41. Bxh6 {[%emt 0:03:52]} gxh6 {[%emt 0:01:15]} 42. Nxh4 {[%emt 0:00:08]} Qe1 {[%emt 0:00:31]} 43. Qxe1 {[%emt 0:00:33]} Nxe1 {[%emt 0:00:03]} 44. Rxd7 {[%emt 0:00:15]} Rxd7 {[%emt 0:00:21]} 45. Nf6+ {[%emt 0:00:10]} Kg7 {[%emt 0:00:05]} 46. Nxd7 {[%emt 0:00:16]} 1-0

[Event "ROU-ch Women 2021"]
[Site "Iasi"]
[Date "2021.04.20"]
[Round "2.6"]
[White "Pirvan, Maria"]
[Black "Maria, Lia-Alexandra"]
[Result "0-1"]
[ECO "B42"]
[WhiteElo "1529"]
[BlackElo "1713"]
[Annotator "NA RC"]
[PlyCount "64"]
[EventDate "2021.04.19"]
[EventType "swiss"]
[EventCountry "ROU"]
[SourceTitle "playchess.com"]
[Source "ChessBase"]
[SourceQuality "1"]
[TimeControl "5400+30"]

1. e4 {[%emt 0:00:00]} c5 {[%emt 0:00:00]} 2. Nf3 {[%emt 0:00:00]} e6 {[%emt 0:00:00]} 3. d4 {[%emt 0:00:00]} cxd4 {[%emt 0:00:00]} 4. Nxd4 {[%emt 0:00:00]} Nf6 {[%emt 0:08:54]} 5. Bd3 {[%emt 0:09:32]} a6 {[%emt 0:00:00]} 6. O-O {[%emt 0:04:36]} Qc7 {[%emt 0:00:00]} 7. Kh1 {[%emt 0:11:15]} d6 {[%emt 0:00:03]} 8. f4 {[%emt 0:03:26]} Nbd7 {[%emt 0:02:18]} 9. Qe2 {[%emt 0:07:27]} b5 {[%emt 0:15:01]} 10. Bxb5 {[%emt 0:25:10]} axb5 {[%emt 0:04:10]} 11. Nxb5 {[%emt 0:00:09]} Qc6 {[%emt 0:01:20]} 12. e5 {[%emt 0:04:26]} Nd5 {[%emt 0:05:57]} 13. exd6 {[%emt 0:09:47]} Bxd6 {[%emt 0:02:53]} 14. c4 {[%emt 0:15:00]} Nc7 {[%emt 0:06:11]} 15. f5 {[%emt 0:02:22]} e5 {[%emt 0:04:06]} 16. Qg4 {[%emt 0:01:44]} Nxb5 {[%emt 0:06:09]} 17. Qxg7 {[%emt 0:01:23]} Rf8 {[%emt 0:00:46]} 18. cxb5 {[%emt 0:00:47]} Qxb5 {[%emt 0:00:34]} 19. Rd1 {[%emt 0:01:20]} Bb4 {[%emt 0:02:55]} 20. Nc3 {[%emt 0:00:59]} Bxc3 {[%emt 0:00:27]} 21. bxc3 {[%emt 0:00:06]} Qc4 {[%emt 0:00:46]} 22. Bh6 {[%emt 0:00:58]} Rxa2 {[%emt 0:02:38]} 23. Rxa2 {[%emt 0:00:26]} Qxa2 {[%emt 0:00:16]} 24. Bg5 {[%emt 0:00:31]} f6 {[%emt 0:04:30]} 25. Bd2 {[%emt 0:00:27]} Qc2 {[%emt 0:00:28]} 26. Qg4 {[%emt 0:00:21]} Bb7 {[%emt 0:01:44]} 27. c4 {[%emt 0:00:46]} Nc5 {[%emt 0:02:15]} 28. Qh5+ {[%emt 0:00:27]} Rf7 {[%emt 0:00:29]} 29. Qg4 {[%emt 0:00:30]} Nd3 {[%emt 0:01:35]} 30. Qe2 {[%emt 0:00:33]} Bxg2+ {[%emt 0:01:23]} 31. Kg1 {[%emt 0:00:25]} Rg7 {[%emt 0:01:29]} 32. Qh5+ {[%emt 0:00:20]} Ke7 {[%emt 0:01:04]} 0-1

[Event "ROU-ch Women 2021"]
[Site "Iasi"]
[Date "2021.04.20"]
[Round "3.1"]
[White "Ciolacu, Alessia-Mihaela"]
[Black "Peptan, Corina-Isabela"]
[Result "1-0"]
[ECO "E25"]
[WhiteElo "2052"]
[BlackElo "2392"]
[Annotator "NA"]
[PlyCount "71"]
[EventDate "2021.04.19"]
[EventType "swiss"]
[EventCountry "ROU"]
[SourceTitle "playchess.com"]
[Source "ChessBase"]
[SourceQuality "1"]
[TimeControl "5400+30"]

1. d4 {[%emt 0:00:00]} Nf6 {[%emt 0:04:49]} 2. c4 {[%emt 0:00:00]} e6 {[%emt 0:00:15]} 3. Nc3 {[%emt 0:00:00]} Bb4 {[%emt 0:00:08]} 4. f3 {[%emt 0:00:00]} d5 {[%emt 0:01:56]} 5. a3 {[%emt 0:00:00]} Bxc3+ {[%emt 0:02:25]} 6. bxc3 {[%emt 0:00:02]} c5 {[%emt 0:00:07]} 7. cxd5 {[%emt 0:00:13]} Nxd5 {[%emt 0:00:47]} 8. dxc5 {[%emt 0:00:17]} O-O {[%emt 0:02:48]} ({Of course not} 8... Nxc3 9. Qxd8+ Kxd8 10. Bb2 $16) (8... f5 $11 {keeps the balance.}) 9. e4 {[%emt 0:03:31]} Nf6 $16 {[%emt 0:04:14]} 10. Be3 {[%emt 0:07:39]} Qa5 {[%emt 0:01:21]} 11. Qb3 {[%emt 0:00:39]} Na6 {[%emt 0:01:26]} 12. a4 {[%emt 0:07:41]} Bd7 {[%emt 0:05:44]} 13. Bxa6 {[%emt 0:06:06]} Qxa6 {[%emt 0:01:12]} 14. Ne2 {[%emt 0:01:05]} Bc6 {[%emt 0:03:11]} 15. c4 {[%emt 0:20:43]} Nd7 {[%emt 0:03:47]} 16. Bd4 {[%emt 0:02:44]} e5 {[%emt 0:10:47]} 17. Be3 {[%emt 0:01:59]} Rfb8 {[%emt 0:02:36]} 18. O-O {[%emt 0:04:07]} b6 {[%emt 0:00:53]} 19. cxb6 {[%emt 0:08:34]} Nxb6 {[%emt 0:01:00]} 20. Bxb6 {[%emt 0:00:20]} Rxb6 {[%emt 0:04:27]} 21. Qc3 {[%emt 0:03:00]} Rab8 {[%emt 0:01:49]} 22. a5 {[%emt 0:08:33]} Rb4 {[%emt 0:06:44]} 23. Qxe5 {[%emt 0:00:38]} Qxc4 {[%emt 0:00:07]} 24. Nf4 {[%emt 0:01:33]} R4b5 {[%emt 0:09:52]} 25. Qd6 {[%emt 0:01:38]} Qc3 {[%emt 0:05:03]} 26. Rac1 {[%emt 0:06:54]} Qe3+ {[%emt 0:00:09]} 27. Kh1 {[%emt 0:00:05]} Ba8 {[%emt 0:06:14]} 28. Rfe1 {[%emt 0:01:54]} Qb3 {[%emt 0:02:51]} 29. Qd7 {[%emt 0:01:47]} Qb4 {[%emt 0:05:44]} 30. a6 {[%emt 0:05:59]} g6 {[%emt 0:05:31]} 31. Red1 {[%emt 0:01:06]} Bxe4 {[%emt 0:06:20]} 32. fxe4 {[%emt 0:01:46]} Qxe4 {[%emt 0:00:01]} 33. Nd5 {[%emt 0:01:27]} Qe5 {[%emt 0:01:04]} 34. Ne7+ {[%emt 0:00:54]} Kg7 {[%emt 0:01:07]} 35. Nc6 {[%emt 0:00:06]} Qe2 {[%emt 0:00:26]} 36. Nxb8 {[%emt 0:00:10]} 1-0